fUSD/lending_fUSD_20260522
["ID","MTS","AMOUNT","RATE_DAILY","PERIOD"]
[422787651,1779391832000,-819.84,0.00014376,2]
[422787622,1779391832000,-215.23956962,0.00014019,2]
[422787687,1779391832000,-4270.22,0.00014497,2]
[422787648,1779391832000,-1512.62699803,0.00014322,2]
[422787681,1779391832000,-500.0,0.00014452,2]
[422787666,1779391832000,-500.0,0.00014452,2]
[422787669,1779391832000,-500.0,0.00014452,2]
[422787678,1779391832000,-500.0,0.00014452,2]
[422787684,1779391832000,-1512.62699803,0.00014467,2]
[422787663,1779391832000,-500.0,0.00014452,2]
[422787660,1779391832000,-500.0,0.00014452,2]
[422787657,1779391832000,-500.0,0.00014452,2]
[422787672,1779391832000,-500.0,0.00014452,2]
[422787745,1779391833000,-317.722442,0.000149,2]
[422787746,1779391833000,-317.722442,0.000149,2]
[422787749,1779391833000,-16831.60966282,0.000149,2]
[422787755,1779391833000,-500.0,0.00014999,2]
[422787747,1779391833000,-317.722442,0.000149,2]
[422787744,1779391833000,-818.20389774,0.000149,2]
[422787748,1779391833000,-317.722442,0.000149,2]
[422787754,1779391833000,-151.0,0.00014997,2]
[422787751,1779391833000,-151.0,0.000149,2]
[422787735,1779391833000,-339.946698,0.000149,2]
[422787738,1779391833000,-196.950263,0.000149,2]
[422787737,1779391833000,-151.0,0.000149,2]
[422787739,1779391833000,-196.950263,0.000149,2]
[422787734,1779391833000,-339.946698,0.000149,2]
[422787733,1779391833000,-339.946698,0.000149,2]
[422787736,1779391833000,-339.946698,0.000149,2]
[422787741,1779391833000,-196.950263,0.000149,2]
[422787740,1779391833000,-196.950263,0.000149,2]
[422787742,1779391833000,-151.0,0.000149,2]
[422787753,1779391833000,-151.0,0.000149,2]
[422787743,1779391833000,-600.0,0.000149,5]
[422787750,1779391833000,-5191.05055992,0.000149,2]
[422787765,1779391833000,-2445.1958222,0.00015,2]
[422787757,1779391833000,-500.0,0.00014999,2]
[422787777,1779391833000,-392.70594018,0.00015,2]
[422787775,1779391833000,-1703.47773723,0.00015,2]
[422787776,1779391833000,-305.87152824,0.00015,2]
[422787774,1779391833000,-367.5852002,0.00015,2]
[422787771,1779391833000,-302.73160405,0.00015,2]
[422787773,1779391833000,-819.1793169,0.00015,2]
[422787772,1779391833000,-1206.9585047,0.00015,2]
[422787770,1779391833000,-551.21250411,0.00015,2]
[422787769,1779391833000,-610.44814184,0.00015,2]
[422787752,1779391833000,-151.0,0.000149,2]
[422787768,1779391833000,-638.81141597,0.00015,2]
[422787766,1779391833000,-1306.980303,0.00015,2]
[422787764,1779391833000,-35386.13487791,0.00015,2]
[422787763,1779391833000,-42382.64904055,0.00015,2]
[422787762,1779391833000,-2683.11040479,0.00015,2]
[422787760,1779391833000,-333.0,0.00015,5]
[422787761,1779391833000,-256319.52696802,0.00015,2]
[422787759,1779391833000,-419.0,0.00015,5]
[422787756,1779391833000,-175.36002963,0.00014999,2]
[422787758,1779391833000,-155.38514841,0.00014999,2]
[422787767,1779391833000,-818.79,0.00015,2]
[422787811,1779391843000,-151.0,0.000149,2]
[422787813,1779391843000,-1556.52964417,0.0001499,2]
[422787812,1779391843000,-151.0,0.000149,2]
[422787814,1779391843000,-332.20720259,0.00015,2]
[422787823,1779391846000,-14421.83203416,0.00015,2]
[422787822,1779391846000,-2066.02217437,0.00015,2]
[422787820,1779391846000,-0.50000005,0.00014635,2]
[422787821,1779391846000,-151.49999995,0.00014635,2]
[422787824,1779391847000,-704.43794619,0.00015,2]
[422787828,1779391859000,155.72,6.426e-05,2]
[422787830,1779392586000,156.12,6.484e-05,2]
[422787838,1779392748000,-91.34548216,0.00010399,2]
[422787837,1779392748000,-150.0,0.00010299,2]
[422787834,1779392748000,-161.80827465,0.0001,2]
[422787836,1779392748000,-150.0,0.00010199,2]
[422787835,1779392748000,-150.0,0.00010099,2]
[422787833,1779392748000,-156.12,9.599e-05,2]
[422787839,1779392805000,-160.0,0.00010544,2]
[422787840,1779392805000,-89.37035117,0.00010559,2]
[422787841,1779392941000,1000.0,0.00028764,120]
[422787842,1779392952000,-160.62964883,0.00010559,2]
[422787845,1779392952000,-151.59671348,0.0001224,2]
[422787844,1779392952000,-190.82778755,0.0001224,2]
[422787843,1779392952000,-300.94768934,0.00010559,2]
[422787846,1779392967000,-81.5877784,0.0001224,2]
[422787847,1779392967000,-421.878529,0.0001224,2]
[422787867,1779393031000,-159.52,0.00013317,2]
[422787859,1779393031000,-423.76,0.00012749,2]
[422787864,1779393031000,-208.68854764,0.00013173,2]
[422787862,1779393031000,-423.76,0.00013067,2]
[422787866,1779393031000,-1147.56,0.00013259,2]
[422787861,1779393031000,-1451.04,0.00013001,2]
[422787872,1779393031000,-150.0,0.00013488,2]
[422787857,1779393031000,-150.0,0.0001259,2]
[422787858,1779393031000,-156.12,0.00012714,2]
[422787855,1779393031000,-150.0,0.0001255,2]
[422787856,1779393031000,-152.0,0.00012551,2]
[422787853,1779393031000,-509.92670054,0.0001224,2]
[422787854,1779393031000,-300.86,0.00012468,2]
[422787865,1779393031000,-1200.0,0.00013257,2]
[422787860,1779393031000,-1481.95,0.00012871,2]
[422787863,1779393031000,-215.23956962,0.00013152,2]
[422787871,1779393031000,-423.76,0.00013386,2]
[422787870,1779393031000,-300.0,0.00013385,2]
[422787869,1779393031000,-13.61521546,0.00013385,2]
[422787887,1779393031000,-106916.77759027,0.000137,2]
[422787885,1779393031000,-273.46160586,0.000137,2]
[422787882,1779393031000,-500.0,0.00013699,2]
[422787879,1779393031000,-500.0,0.00013699,2]
[422787880,1779393031000,-500.0,0.00013699,2]
[422787889,1779393031000,-332.7359301,0.000137,2]
[422787878,1779393031000,-500.0,0.00013699,2]
[422787876,1779393031000,-499.50294632,0.000137,2]
[422787875,1779393031000,-349.9903876,0.000137,2]
[422787873,1779393031000,-201.44549433,0.00013631,2]
[422787874,1779393031000,-172.08,0.00013699,2]
[422787868,1779393031000,-286.38478454,0.00013385,2]
[422787877,1779393031000,-500.24695847,0.00013699,2]
[422787950,1779393038000,-500.0,0.00013699,2]
[422787951,1779393038000,-500.0,0.00013699,2]
[422787953,1779393038000,-210.5742448,0.00013699,2]
[422787952,1779393038000,-500.0,0.00013699,2]
[422787949,1779393038000,-500.0,0.00013699,2]
[422788197,1779393040000,-480.7623848,0.00013699,2]
[422788195,1779393040000,-289.4257552,0.00013699,2]
[422788587,1779393043000,-19.2376152,0.00013699,2]
[422788589,1779393043000,-8.47020159,0.00013699,2]
[422788854,1779393045000,-491.52979841,0.00013699,2]
[422788853,1779393045000,-152.0,0.00011064,2]
[422788855,1779393045000,-498.07020159,0.00013699,2]
[422788861,1779393046000,-199.68624318,0.00013699,2]
[422788863,1779393046000,-500.0,0.00013699,2]
[422788856,1779393046000,-1.92979841,0.00013699,2]
[422788858,1779393046000,-500.0,0.00013699,2]
[422788866,1779393046000,-10218.02977978,0.000137,2]
[422788857,1779393046000,-500.0,0.00013699,2]
[422788864,1779393046000,-500.0,0.00013699,2]
[422788859,1779393046000,-500.0,0.00013699,2]
[422788865,1779393046000,-500.0,0.00013699,2]
[422788867,1779393046000,-9326.49,0.000137,2]
[422788862,1779393046000,-500.0,0.00013699,2]
[422788860,1779393046000,-323.56776766,0.00013699,2]
[422788876,1779393952000,-202.83055927,7.773e-05,2]
[422788875,1779393952000,-250.0,7.37e-05,2]
[422788874,1779393952000,-155.59,6.7e-05,2]
[422788877,1779393981000,4000.0,0.00028767,120]
[422788879,1779394141000,1000.0,0.00028766,120]
[422788880,1779394151000,-30.38919006,7.773e-05,2]
[422788882,1779394151000,-155.59,8.846e-05,2]
[422788885,1779394151000,-152.0,0.00011262,2]
[422788881,1779394151000,-479.82878618,8.846e-05,2]
[422788883,1779394151000,-161.80827466,0.0001,2]
[422788886,1779394151000,-261.37,0.00012325,2]
[422788888,1779394151000,-58.9486241,0.00012798,2]
[422788887,1779394151000,-386.542946,0.00012744,2]
[422788884,1779394151000,-155.59,0.00010992,2]
[422788891,1779394159000,-44.82486375,0.00012917,2]
[422788889,1779394159000,-117.2413759,0.00012798,2]
[422788890,1779394159000,-164.66,0.00012809,2]
[422788893,1779394174000,-538.56513625,0.00012917,2]
[422788892,1779394174000,-983.13772582,0.00012917,2]
[422788894,1779394174000,-855.78,0.00012932,2]
[422788897,1779394174000,-335.56327066,0.00012993,2]
[422788896,1779394174000,-745.08,0.00012983,2]
[422788895,1779394174000,-200.0,0.00012974,2]
[422788925,1779394232000,-172.08,0.00013699,2]
[422788923,1779394232000,-151.0,0.00013697,2]
[422788927,1779394232000,-500.0,0.00013699,2]
[422788926,1779394232000,-500.0,0.00013699,2]
[422788932,1779394232000,-2487.0393,0.000137,2]
[422788930,1779394232000,-544.66688705,0.000137,2]
[422788933,1779394232000,-238343.6822,0.000137,2]
[422788936,1779394232000,-877.87572836,0.00013786,2]
[422788934,1779394232000,-99151.7967,0.000137,2]
[422788931,1779394232000,-151.0,0.000137,2]
[422788929,1779394232000,-1008.3101,0.000137,2]
[422788935,1779394232000,-215.23956962,0.00013778,2]
[422788924,1779394232000,-151.0,0.00013697,2]
[422788937,1779394232000,-1344.5771,0.000138,2]
[422788939,1779394232000,-2500.0,0.000138,2]
[422788938,1779394232000,-2000.0,0.000138,2]
[422788928,1779394232000,-2603.58425726,0.00013699,2]
[422788922,1779394232000,-151.0,0.00013697,2]
[422788914,1779394232000,-745.08,0.00013308,2]
[422788918,1779394232000,-11810.6753473,0.00013527,2]
[422788902,1779394232000,-982.48672934,0.00012993,2]
[422788904,1779394232000,-155.59,0.00013138,2]
[422788903,1779394232000,-150.0,0.00012999,2]
[422788910,1779394232000,-677.6551453,0.00013236,2]
[422788905,1779394232000,-1200.0,0.00013184,2]
[422788909,1779394232000,-304.0546527,0.00013206,2]
[422788906,1779394232000,-5987.34218737,0.00013185,2]
[422788920,1779394232000,-877.87572837,0.000136,2]
[422788907,1779394232000,-5527.53781263,0.00013185,2]
[422788912,1779394232000,-1249.3048547,0.00013236,2]
[422788913,1779394232000,-150.0,0.00013264,2]
[422788915,1779394232000,-52228.9252689,0.00013422,2]
[422788942,1779394232000,-745.08,0.00013957,2]
[422788916,1779394232000,-18946.3649995,0.00013422,2]
[422788919,1779394232000,-535.9516,0.00013597,2]
[422788917,1779394232000,-244.07864378,0.00013488,2]
[422788908,1779394232000,-413.6353473,0.00013206,2]
[422788945,1779394232000,-250.0,0.00014,2]
[422788911,1779394232000,-400.0,0.00013236,2]
[422788944,1779394232000,-4597.02303933,0.0001399,2]
[422788964,1779394232000,-400.0,0.000146,5]
[422788967,1779394232000,-400.0,0.000148,5]
[422788969,1779394232000,-200.0,0.0001488,2]
[422788968,1779394232000,-200.0,0.00014879,2]
[422788970,1779394232000,-955.64410926,0.000149,3]
[422788971,1779394232000,-290.09993325,0.000149,2]
[422788972,1779394232000,-400.0,0.000149,5]
[422788973,1779394232000,-1495.88276971,0.000149,2]
[422788974,1779394232000,-164.29813333,0.000149,2]
[422788975,1779394232000,-8415.80483141,0.000149,2]
[422788976,1779394232000,-500.0,0.00014992,2]
[422788977,1779394232000,-594.82336552,0.00014999,2]
[422788979,1779394232000,-163.66393808,0.00014999,2]
[422788981,1779394232000,-198.92910061,0.00014999,2]
[422788980,1779394232000,-500.0,0.00014999,2]
[422788978,1779394232000,-458.76960389,0.00014999,2]
[422788946,1779394232000,-400.0,0.000141,5]
[422788966,1779394232000,-400.0,0.000147,5]
[422788965,1779394232000,-1318.05,0.00014617,2]
[422788921,1779394232000,-745.08,0.00013632,2]
[422788963,1779394232000,-2100.0,0.000145,5]
[422788962,1779394232000,-1600.0,0.000144,5]
[422788943,1779394232000,-877.87572836,0.00013971,2]
[422788947,1779394232000,-800.0,0.000142,5]
[422788948,1779394232000,-745.08,0.00014281,2]
[422788949,1779394232000,-2500.0,0.00014292,2]
[422788950,1779394232000,-2500.0,0.00014292,2]
[422788952,1779394232000,-600.0,0.00014292,2]
[422788951,1779394232000,-2197.58590142,0.00014292,2]
[422788941,1779394232000,-183.06018215,0.00013861,21]
[422788954,1779394232000,-300.0,0.00014292,2]
[422788959,1779394232000,-1200.0,0.000143,5]
[422788953,1779394232000,-206.16602365,0.00014292,2]
[422788961,1779394232000,-162.71814,0.00014343,2]
[422788960,1779394232000,-150.0,0.00014343,2]
[422788940,1779394232000,-183.06018215,0.0001381,21]
[422788958,1779394232000,-202.94379986,0.00014292,2]
[422788956,1779394232000,-300.0,0.00014292,2]
[422788957,1779394232000,-300.0,0.00014292,2]
[422788955,1779394232000,-300.0,0.00014292,2]
[422788996,1779394233000,-11614.88158213,0.00015,2]
[422788995,1779394233000,-427.65,0.00015,2]
[422788994,1779394233000,-52101.4198085,0.00015,2]
[422788990,1779394233000,-274.0,0.00015,5]
[422788993,1779394233000,-68623.50406557,0.00015,2]
[422788992,1779394233000,-93242.22991306,0.00015,2]
[422788987,1779394233000,-500.0,0.00014999,2]
[422788989,1779394233000,-378.0,0.00015,5]
[422788986,1779394233000,-500.0,0.00014999,2]
[422788985,1779394233000,-500.0,0.00014999,2]
[422788984,1779394233000,-500.0,0.00014999,2]
[422788982,1779394233000,-1638.4186133,0.00014999,5]
[422788991,1779394233000,-313.0,0.00015,5]
[422788983,1779394233000,-150.0,0.00014999,2]
[422788988,1779394233000,-519.31394267,0.00014999,2]
[422789017,1779394233000,-500.0,0.00013699,2]
[422789016,1779394233000,-501.04449836,0.00013699,2]
[422789030,1779394233000,-500.0,0.00013699,2]
[422789031,1779394233000,-364.83980895,0.00013699,2]
[422789029,1779394233000,-500.0,0.00013699,2]
[422789028,1779394233000,-500.0,0.00013699,2]
[422789027,1779394233000,-500.0,0.00013699,2]
[422789026,1779394233000,-500.0,0.00013699,2]
[422789015,1779394233000,-500.0,0.00013699,2]
[422789024,1779394233000,-500.0,0.00013699,2]
[422789023,1779394233000,-500.0,0.00013699,2]
[422789022,1779394233000,-500.0,0.00013699,2]
[422789020,1779394233000,-500.0,0.00013699,2]
[422789021,1779394233000,-500.0,0.00013699,2]
[422789018,1779394233000,-384.81782868,0.00013699,2]
[422789025,1779394233000,-500.0,0.00013699,2]
[422789019,1779394233000,-115.18217132,0.00013699,2]
[422789036,1779394237000,-135.16019105,0.00013699,2]
[422789037,1779394237000,-500.0,0.00013699,2]
[422789038,1779394237000,-500.0,0.00013699,2]
[422789040,1779394237000,-500.0,0.00013699,2]
[422789039,1779394237000,-586.31763912,0.00013699,2]
[422789041,1779394237000,-500.0,0.00013699,2]
[422789043,1779394237000,-500.0,0.00013699,2]
[422789042,1779394237000,-500.0,0.00013699,2]
[422789048,1779394237000,-500.0,0.00013699,2]
[422789045,1779394237000,-500.0,0.00013699,2]
[422789046,1779394237000,-500.0,0.00013699,2]
[422789047,1779394237000,-500.0,0.00013699,2]
[422789050,1779394237000,-500.0,0.00013699,2]
[422789049,1779394237000,-500.0,0.00013699,2]
[422789051,1779394237000,-500.0,0.00013699,2]
[422789044,1779394237000,-500.0,0.00013699,2]
[422789052,1779394238000,-500.0,0.00013699,2]
[422789054,1779394238000,-500.0,0.00013699,2]
[422789062,1779394238000,-2304.08768577,0.00015,2]
[422789055,1779394238000,-877.87572836,0.00014157,2]
[422789056,1779394238000,-168.45513383,0.00015,2]
[422789053,1779394238000,-500.0,0.00013699,2]
[422789141,1779394240000,-800.30798175,0.00015,2]
[422789143,1779394240000,-289.5,0.00015,2]
[422789142,1779394240000,-62657.84549931,0.00015,2]
[422789144,1779394240000,-40452.92053555,0.00015,2]
[422789154,1779394243000,-834.84277497,0.00015,2]
[422789155,1779394243000,-661.03999474,0.00015,2]
[422789153,1779394243000,-3537.84523101,0.00015,2]
[422789152,1779394243000,-1817.09729457,0.00015,2]
[422789149,1779394243000,-152.0,8.162e-05,2]
[422789150,1779394243000,-877.87572836,0.00014343,2]
[422789151,1779394243000,-154.2033858,0.000149,2]
[422789158,1779394246000,-100000.0,0.00015,2]
[422789166,1779394656000,10000.0,0.00028767,120]
[422789167,1779395001000,2546.13126469,0.00028767,120]
[422789169,1779395340000,1000.0,0.00028766,120]
[422789171,1779395347000,-1716.76556106,9.04e-05,2]
[422789172,1779395347000,-300.0,9.999e-05,2]
[422789170,1779395347000,-203.48,6.901e-05,2]
[422789173,1779395347000,-1465.43426373,0.0001,2]
[422789175,1779395347000,-264.62962237,0.0001,2]
[422789177,1779395347000,-59.44618598,0.00011291,2]
[422789176,1779395347000,-420.0,0.00010999,2]
[422789174,1779395347000,-8491.64661936,0.0001,2]
[422789178,1779395362000,-114.47381402,0.00011291,2]
[422789179,1779395362000,-48.85298598,0.00011429,2]
[422789180,1779395365000,-103.14701402,0.00011429,2]
[422789196,1779395432000,-150.0,0.00013488,2]
[422789197,1779395432000,-832.80761298,0.00013553,2]
[422789204,1779395432000,-152.40674024,0.00013699,2]
[422789198,1779395432000,-9226.18238702,0.00013553,2]
[422789199,1779395432000,-4270.22,0.00013608,2]
[422789200,1779395432000,-163.45,0.00013608,2]
[422789201,1779395432000,-205.07,0.00013675,2]
[422789202,1779395432000,-166.66,0.00013699,2]
[422789205,1779395432000,-194.13959775,0.00013699,2]
[422789215,1779395432000,-57675.53685058,0.000137,2]
[422789203,1779395432000,-150.0,0.00013699,2]
[422789207,1779395432000,-500.0,0.00013699,2]
[422789208,1779395432000,-500.0,0.00013699,2]
[422789209,1779395432000,-310.93265318,0.00013699,2]
[422789210,1779395432000,-546.59831836,0.00013699,2]
[422789211,1779395432000,-2139.4703,0.000137,2]
[422789213,1779395432000,-202367.34291496,0.000137,2]
[422789212,1779395432000,-580803.63967028,0.000137,2]
[422789214,1779395432000,-72238.1519604,0.000137,2]
[422789206,1779395432000,-500.0,0.00013699,2]
[422789216,1779395433000,-31359.17423895,0.000137,2]
[422789218,1779395433000,-448.87485434,0.000137,2]
[422789217,1779395433000,-3067.04314473,0.000137,2]
[422789219,1779395433000,-3823.15770812,0.000137,2]
[422789221,1779395433000,-708.24423702,0.000137,2]
[422789222,1779395433000,-1167.93980651,0.000137,2]
[422789220,1779395433000,-700.19088126,0.000137,2]
[422789234,1779395440000,-500.0,0.00013699,2]
[422789231,1779395440000,-165.02869618,0.00013699,2]
[422789230,1779395440000,-360.46411306,0.00013699,2]
[422789232,1779395440000,-334.97130382,0.00013699,2]
[422789233,1779395440000,-500.0,0.00013699,2]
[422789237,1779395440000,-500.0,0.00013699,2]
[422789229,1779395440000,-500.0,0.00013699,2]
[422789235,1779395440000,-500.0,0.00013699,2]
[422789238,1779395440000,-496.30445522,0.00013699,2]
[422789239,1779395440000,-185.63373333,0.00013699,2]
[422789240,1779395440000,-32.58470733,0.00013699,2]
[422789242,1779395440000,-500.0,0.00013699,2]
[422789236,1779395440000,-500.0,0.00013699,2]
[422789241,1779395440000,-467.41529267,0.00013699,2]
[422789282,1779395441000,-500.0,0.00014,2]
[422789280,1779395441000,-500.0,0.00014,2]
[422789279,1779395441000,-500.0,0.00014,2]
[422789286,1779395441000,-500.0,0.00014,2]
[422789283,1779395441000,-500.0,0.00014,2]
[422789276,1779395441000,-215.23956962,0.00013992,2]
[422789278,1779395441000,-619.59,0.00014,2]
[422789284,1779395441000,-500.0,0.00014,2]
[422789277,1779395441000,-500.0,0.00014,2]
[422789275,1779395441000,-208.57,0.00013982,2]
[422789272,1779395441000,-630.4061,0.000137,2]
[422789281,1779395441000,-500.0,0.00014,2]
[422789285,1779395441000,-500.0,0.00014,2]
[422789289,1779395441000,-500.0,0.00014,2]
[422789290,1779395441000,-500.0,0.00014,2]
[422789288,1779395441000,-500.0,0.00014,2]
[422789291,1779395441000,-500.0,0.00014,2]
[422789292,1779395441000,-500.0,0.00014,2]
[422789294,1779395441000,-500.0,0.00014,2]
[422789302,1779395441000,-500.0,0.00014,2]
[422789296,1779395441000,-500.0,0.00014,2]
[422789300,1779395441000,-500.0,0.00014,2]
[422789298,1779395441000,-500.0,0.00014,2]
[422789305,1779395441000,-500.0,0.00014,2]
[422789307,1779395441000,-500.0,0.00014,2]
[422789273,1779395441000,-1163.48,0.00013727,2]
[422789287,1779395441000,-500.0,0.00014,2]
[422789274,1779395441000,-500.0,0.00013748,2]
[422789256,1779395441000,-500.0,0.00013699,2]
[422789269,1779395441000,-3448.25219006,0.000137,2]
[422789243,1779395441000,-500.0,0.00013699,2]
[422789244,1779395441000,-500.0,0.00013699,2]
[422789247,1779395441000,-500.0,0.00013699,2]
[422789246,1779395441000,-500.0,0.00013699,2]
[422789245,1779395441000,-500.0,0.00013699,2]
[422789248,1779395441000,-500.0,0.00013699,2]
[422789249,1779395441000,-500.0,0.00013699,2]
[422789251,1779395441000,-500.0,0.00013699,2]
[422789250,1779395441000,-500.0,0.00013699,2]
[422789253,1779395441000,-500.0,0.00013699,2]
[422789252,1779395441000,-500.0,0.00013699,2]
[422789254,1779395441000,-500.0,0.00013699,2]
[422789270,1779395441000,-439613.82585617,0.000137,2]
[422789257,1779395441000,-500.0,0.00013699,2]
[422789255,1779395441000,-500.0,0.00013699,2]
[422789258,1779395441000,-500.0,0.00013699,2]
[422789259,1779395441000,-500.0,0.00013699,2]
[422789263,1779395441000,-410.07194708,0.00013699,2]
[422789262,1779395441000,-500.0,0.00013699,2]
[422789265,1779395441000,-500.0,0.00013699,2]
[422789264,1779395441000,-500.0,0.00013699,2]
[422789260,1779395441000,-500.0,0.00013699,2]
[422789261,1779395441000,-500.0,0.00013699,2]
[422789267,1779395441000,-30101.03951096,0.000137,2]
[422789266,1779395441000,-9734.07966306,0.000137,2]
[422789268,1779395441000,-1071.1715126,0.000137,2]
[422789309,1779395441000,-500.0,0.00014,2]
[422789311,1779395441000,-500.0,0.00014,2]
[422789333,1779395441000,-494.75,0.00014,2]
[422789327,1779395441000,-500.0,0.00014,2]
[422789390,1779395441000,-1945.94801553,0.000147,2]
[422789382,1779395441000,-150.0,0.00014252,5]
[422789375,1779395441000,-500.0,0.00014252,5]
[422789380,1779395441000,-236.38473552,0.00014252,5]
[422789314,1779395441000,-500.0,0.00014,2]
[422789397,1779395441000,-10000.0,0.00014789,2]
[422789395,1779395441000,-1203.02977738,0.00014734,2]
[422789399,1779395441000,-615.0,0.00014795,2]
[422789401,1779395441000,-255.0,0.00014822,2]
[422789403,1779395441000,-720.22,0.00014833,2]
[422789406,1779395441000,-166.87,0.00014833,2]
[422789408,1779395441000,-185.18518,0.0001485,2]
[422789377,1779395441000,-500.0,0.00014252,5]
[422789410,1779395441000,-221.0,0.00014876,2]
[422789419,1779395441000,-681.46054837,0.00014899,2]
[422789415,1779395441000,-681.46054842,0.00014899,2]
[422789417,1779395441000,-681.46054837,0.00014899,2]
[422789421,1779395441000,-681.46054837,0.00014899,2]
[422789423,1779395441000,-681.46054837,0.00014899,2]
[422789425,1779395441000,-681.46054837,0.000149,2]
[422789426,1779395441000,-681.46054837,0.000149,2]
[422789427,1779395441000,-681.46054837,0.000149,2]
[422789429,1779395441000,-681.46054837,0.000149,2]
[422789431,1779395441000,-6481.42907501,0.000149,3]
[422789435,1779395441000,-159.44426831,0.000149,2]
[422789433,1779395441000,-167.319,0.000149,2]
[422789412,1779395441000,-200.0,0.0001488,2]
[422789384,1779395441000,-150.0,0.00014252,5]
[422789393,1779395441000,-205.07,0.00014701,2]
[422789373,1779395441000,-500.0,0.00014252,5]
[422789331,1779395441000,-500.0,0.00014,2]
[422789329,1779395441000,-500.0,0.00014,2]
[422789316,1779395441000,-500.0,0.00014,2]
[422789318,1779395441000,-500.0,0.00014,2]
[422789320,1779395441000,-500.0,0.00014,2]
[422789386,1779395441000,-227.91888578,0.00014252,5]
[422789324,1779395441000,-500.0,0.00014,2]
[422789337,1779395441000,-250.0,0.00014,2]
[422789335,1779395441000,-500.0,0.00014,2]
[422789339,1779395441000,-205.07,0.00014017,2]
[422789342,1779395441000,-166.7,0.00014038,2]
[422789344,1779395441000,-790.83,0.00014069,2]
[422789348,1779395441000,-500.0,0.00014252,5]
[422789322,1779395441000,-500.0,0.00014,2]
[422789350,1779395441000,-500.0,0.00014252,5]
[422789352,1779395441000,-500.0,0.00014252,5]
[422789388,1779395441000,-205.07,0.00014359,2]
[422789371,1779395441000,-252.32680808,0.00014252,5]
[422789367,1779395441000,-500.0,0.00014252,5]
[422789365,1779395441000,-500.0,0.00014252,5]
[422789369,1779395441000,-500.0,0.00014252,5]
[422789356,1779395441000,-500.0,0.00014252,5]
[422789363,1779395441000,-500.0,0.00014252,5]
[422789361,1779395441000,-500.0,0.00014252,5]
[422789346,1779395441000,-500.0,0.00014252,5]
[422789354,1779395441000,-500.0,0.00014252,5]
[422789359,1779395441000,-500.0,0.00014252,5]
[422789457,1779395442000,-281.20309845,0.00014997,2]
[422789465,1779395442000,-181.36181722,0.00014999,2]
[422789461,1779395442000,-1097.29439826,0.00014999,5]
[422789467,1779395442000,-500.0,0.00014999,2]
[422789453,1779395442000,-4668.725282,0.00014967,2]
[422789463,1779395442000,-1097.29439826,0.00014999,5]
[422789438,1779395442000,-681.46054837,0.000149,2]
[422789446,1779395442000,-615.0,0.00014955,2]
[422789448,1779395442000,-1681.2142546,0.00014967,2]
[422789444,1779395442000,-185.18519,0.0001495,2]
[422789442,1779395442000,-15000.0,0.00014914,2]
[422789440,1779395442000,-13445.93444637,0.000149,2]
[422789460,1779395442000,-1097.29439826,0.00014999,5]
[422789450,1779395442000,-4101.7769193,0.00014967,2]
[422789455,1779395442000,-79998.5501893,0.00014967,2]
[422789487,1779395442000,-670.58560358,0.00014999,2]
[422789471,1779395442000,-500.0,0.00014999,2]
[422789543,1779395442000,-4828.93207678,0.00015,2]
[422789531,1779395442000,-620.4,0.00015,2]